fUSD/lending_fUSD_20250618
["ID","MTS","AMOUNT","RATE_DAILY","PERIOD"]
[366398280,1750230663097,-490.0,0.00016767,2]
[366398281,1750230663110,-528.41,0.00016767,2]
[366398282,1750230663121,-490.0,0.00016767,2]
[366398283,1750230663132,-490.0,0.00016767,2]
[366398284,1750230663142,-657.29,0.00016767,2]
[366398285,1750230663152,-490.0,0.00016767,2]
[366398286,1750230663162,-1349.21,0.00016767,2]
[366398287,1750230663173,-490.0,0.00016767,2]
[366398288,1750230663183,-490.0,0.00016767,2]
[366398289,1750230663194,-490.0,0.00016767,2]
[366398290,1750230663205,-490.0,0.00016767,2]
[366398291,1750230663216,-820.87,0.00016767,2]
[366398292,1750230663227,-511.16,0.00016767,2]
[366398293,1750230663237,-417.42832223,0.00016767,2]
[366398294,1750230663247,-490.0,0.00016767,2]
[366398295,1750230663257,-1536.75,0.00016767,2]
[366398296,1750230663268,-1711.44,0.00016767,2]
[366398297,1750230663278,-490.0,0.00016767,2]
[366398298,1750230663290,-490.0,0.00016767,2]
[366398299,1750230663300,-1340.89,0.00016767,2]
[366398300,1750230663310,-243.833566,0.00016767,2]
[366398301,1750230663321,-1861.69,0.00016767,2]
[366398302,1750230663331,-490.0,0.00016767,2]
[366398303,1750230663341,-490.0,0.00016767,2]
[366398304,1750230663351,-490.0,0.00016767,2]
[366398305,1750230663361,-916.29,0.00016767,2]
[366398306,1750230663372,-490.0,0.00016767,2]
[366398307,1750230663382,-490.0,0.00016767,2]
[366398308,1750230663392,-538.77771618,0.00016767,2]
[366398309,1750230663403,-1148.32,0.00016767,2]
[366398310,1750230663413,-490.0,0.00016767,2]
[366398311,1750230663423,-490.0,0.00016767,2]
[366398312,1750230663433,-490.0,0.00016767,2]
[366398313,1750230663444,-490.0,0.00016767,2]
[366398314,1750230663455,-490.0,0.00016767,2]
[366398315,1750230663466,-490.0,0.00016767,2]
[366398316,1750230663476,-617.91,0.00016767,2]
[366398317,1750230663486,-1137.67,0.00016767,2]
[366398318,1750230663496,-2472.57,0.00016767,2]
[366398319,1750230663506,-696.26,0.00016767,2]
[366398320,1750230663517,-725.64,0.00016767,2]
[366398321,1750230663527,-490.0,0.00016767,2]
[366398322,1750230663537,-658.75,0.00016767,2]
[366398323,1750230663547,-1967.95,0.00016767,2]
[366398324,1750230663558,-490.0,0.00016767,2]
[366398325,1750230663569,-1491.99,0.00016767,2]
[366398326,1750230663581,-490.0,0.00016767,2]
[366398327,1750230663591,-490.0,0.00016767,2]
[366398328,1750230663601,-1758.45,0.00016767,2]
[366398329,1750230663612,-490.0,0.00016767,2]
[366398330,1750230663622,-490.0,0.00016767,2]
[366398331,1750230663632,-490.0,0.00016767,2]
[366398332,1750230663644,-567.44,0.00016767,2]
[366398333,1750230663654,-490.0,0.00016767,2]
[366398334,1750230663664,-490.0,0.00016767,2]
[366398335,1750230663675,-2345.48,0.00016767,2]
[366398336,1750230663685,-668.88,0.00016767,2]
[366398337,1750230663695,-1040.3,0.00016767,2]
[366398338,1750230663705,-605.25,0.00016767,2]
[366398339,1750230663716,-699.75,0.00016767,2]
[366398340,1750230663726,-490.0,0.00016767,2]
[366398341,1750230663736,-490.0,0.00016767,2]
[366398342,1750230663746,-490.0,0.00016767,2]
[366398343,1750230663757,-490.0,0.00016767,2]
[366398344,1750230663768,-1757.44,0.00016767,2]
[366398345,1750230663780,-490.0,0.00016767,2]
[366398346,1750230663790,-490.0,0.00016767,2]
[366398347,1750230663800,-490.0,0.00016767,2]
[366398348,1750230663810,-932.24,0.00016767,2]
[366398349,1750230663821,-497.77,0.00016767,2]
[366398350,1750230664039,-490.0,0.00016767,2]
[366398351,1750230664069,-570.48380333,0.00016767,2]
[366398352,1750230664091,-344.27451791,0.00016767,2]
[366398353,1750230664114,-490.0,0.00016767,2]
[366398354,1750230664137,-1182.93,0.00016767,2]
[366398355,1750230664159,-490.0,0.00016767,2]
[366398356,1750230664181,-1470.34,0.00016767,2]
[366398357,1750230664204,-490.0,0.00016767,2]
[366398358,1750230664224,-490.0,0.00016767,2]
[366398359,1750230664246,-490.0,0.00016767,2]
[366398360,1750230664268,-490.0,0.00016767,2]
[366398361,1750230664291,-731.38,0.00016767,2]
[366398362,1750230664313,-490.0,0.00016767,2]
[366398363,1750230664335,-567.51,0.00016767,2]
[366398364,1750230664358,-490.0,0.00016767,2]
[366398365,1750230664379,-490.0,0.00016767,2]
[366398366,1750230664401,-1972.08,0.00016767,2]
[366398367,1750230664411,-574.95,0.00016767,2]
[366398368,1750230664421,-502.41,0.00016767,2]
[366398369,1750230664431,-512.73,0.00016767,2]
[366398370,1750230664442,-490.0,0.00016767,2]
[366398371,1750230664452,-1611.48,0.00016767,2]
[366398372,1750230664462,-490.0,0.00016767,2]
[366398373,1750230664472,-490.0,0.00016767,2]
[366398374,1750230664482,-490.0,0.00016767,2]
[366398375,1750230664492,-490.0,0.00016767,2]
[366398376,1750230664502,-490.0,0.00016767,2]
[366398377,1750230664512,-1366.99,0.00016767,2]
[366398378,1750230664522,-490.0,0.00016767,2]
[366398379,1750230664532,-539.59,0.00016767,2]
[366398380,1750230664541,-490.0,0.00016767,2]
[366398381,1750230664551,-593.86,0.00016767,2]
[366398382,1750230664561,-540.65,0.00016767,2]
[366398383,1750230664570,-490.0,0.00016767,2]
[366398384,1750230664580,-490.0,0.00016767,2]
[366398385,1750230664589,-490.0,0.00016767,2]
[366398386,1750230664599,-1000.0,0.00016767,2]
[366398387,1750230664609,-778.8,0.00016767,2]
[366398388,1750230664618,-490.0,0.00016767,2]
[366398389,1750230664628,-503.94,0.00016767,2]
[366398390,1750230664638,-490.0,0.00016767,2]
[366398391,1750230664647,-1228.42,0.00016767,2]
[366398392,1750230664657,-490.0,0.00016767,2]
[366398393,1750230664667,-490.0,0.00016767,2]
[366398394,1750230664676,-2046.85,0.00016767,2]
[366398395,1750230664686,-490.0,0.00016767,2]
[366398396,1750230664696,-502.78,0.00016767,2]
[366398397,1750230664706,-710.87,0.00016767,2]
[366398398,1750230664715,-490.0,0.00016767,2]
[366398399,1750230664725,-668.18,0.00016767,2]
[366398400,1750230664734,-678.96,0.00016767,2]
[366398401,1750230664744,-1728.94,0.00016767,2]
[366398402,1750230664754,-578.87,0.00016767,2]
[366398403,1750230664764,-1145.23,0.00016767,2]
[366398404,1750230664774,-1325.13,0.00016767,2]
[366398405,1750230664784,-1841.51,0.00016767,2]
[366398406,1750230664795,-490.0,0.00016767,2]
[366398407,1750230664805,-2243.18,0.00016767,2]
[366398408,1750230664814,-275.72395825,0.00016767,2]
[366398409,1750230664824,-812.82,0.00016767,2]
[366398410,1750230664834,-490.0,0.00016767,2]
[366398411,1750230664843,-648.63,0.00016767,2]
[366398412,1750230664853,-490.0,0.00016767,2]
[366398413,1750230664863,-632.74,0.00016767,2]
[366398414,1750230664874,-1166.03,0.00016767,2]
[366398415,1750230664884,-490.0,0.00016767,2]
[366398416,1750230664893,-2204.29,0.00016767,2]
[366398417,1750230664903,-490.0,0.00016767,2]
[366398418,1750230664913,-490.0,0.00016767,2]
[366398419,1750230664924,-1567.64,0.00016767,2]
[366398420,1750230664934,-3764.5,0.00016767,2]
[366398421,1750230664944,-1130.61,0.00016767,2]
[366398422,1750230664954,-490.0,0.00016767,2]
[366398423,1750230664964,-490.0,0.00016767,2]
[366398424,1750230664975,-490.0,0.00016767,2]
[366398425,1750230664985,-490.0,0.00016767,2]
[366398426,1750230664995,-490.0,0.00016767,2]
[366398427,1750230665004,-490.0,0.00016767,2]
[366398428,1750230665014,-628.67,0.00016767,2]
[366398429,1750230665024,-490.0,0.00016767,2]
[366398430,1750230665034,-17594.43,0.00016767,2]
[366398431,1750230665044,-1039.44,0.00016767,2]
[366398432,1750230665054,-490.0,0.00016767,2]
[366398433,1750230665064,-1839.44,0.00016767,2]
[366398434,1750230665075,-490.0,0.00016767,2]
[366398435,1750230665085,-490.0,0.00016767,2]
[366398436,1750230665095,-1599.47,0.00016767,2]
[366398437,1750230665108,-490.0,0.00016767,2]
[366398438,1750230665118,-4919.38,0.00016767,2]
[366398439,1750230665131,-2306.21,0.00016767,2]
[366398440,1750230665141,-7771.26,0.00016767,2]
[366398441,1750230665152,-908.5,0.00016767,2]
[366398442,1750230665162,-1450.05,0.00016767,2]
[366398443,1750230665172,-1049.31,0.00016767,2]
[366398444,1750230665183,-490.0,0.00016767,2]
[366398445,1750230665193,-490.0,0.00016767,2]
[366398446,1750230665203,-490.0,0.00016767,2]
[366398447,1750230665213,-1599.41,0.00016767,2]
[366398448,1750230665223,-490.0,0.00016767,2]
[366398449,1750230665233,-1275.32,0.00016767,2]
[366398450,1750230665243,-379.90062193,0.00016767,2]
[366398451,1750230665253,-1295.99,0.00016767,2]
[366398452,1750230665263,-490.0,0.00016767,2]
[366398453,1750230665273,-1297.62,0.00016767,2]
[366398454,1750230665283,-490.0,0.00016767,2]
[366398455,1750230665293,-490.0,0.00016767,2]
[366398456,1750230665303,-992.92,0.00016767,2]
[366398457,1750230665313,-5852.3,0.00016767,2]
[366398458,1750230665323,-2627.42,0.00016767,2]
[366398459,1750230665333,-1026.94,0.00016767,2]
[366398460,1750230665342,-6537.15,0.00016767,2]
[366398461,1750230665353,-467.93602162,0.00016767,2]
[366398462,1750230665363,-4456.64,0.00016767,2]
[366398463,1750230665373,-910.354394,0.00016767,2]
[366398464,1750230665383,-1575.57,0.00016767,2]
[366398465,1750230665393,-556.34,0.00016767,2]
[366398466,1750230665403,-490.0,0.00016767,2]
[366398467,1750230665414,-869.12,0.00016767,2]
[366398468,1750230665424,-1160.61,0.00016767,2]
[366398469,1750230665434,-490.0,0.00016767,2]
[366398470,1750230665444,-1261.68,0.00016767,2]
[366398471,1750230665454,-490.0,0.00016767,2]
[366398472,1750230665463,-2084.82,0.00016767,2]
[366398473,1750230665473,-1697.96,0.00016767,2]
[366398474,1750230665483,-677.55,0.00016767,2]
[366398475,1750230665493,-22297.49,0.00016767,2]
[366398476,1750230665503,-2836.93,0.00016767,2]
[366398477,1750230665513,-490.0,0.00016767,2]
[366398478,1750230665523,-490.0,0.00016767,2]
[366398479,1750230665533,-678.79,0.00016767,2]
[366398480,1750230665543,-578.87,0.00016767,2]
[366398481,1750230665553,-3449.48,0.00016767,2]
[366398482,1750230665563,-490.0,0.00016767,2]
[366398483,1750230665573,-490.0,0.00016767,2]
[366398484,1750230665584,-563.11,0.00016767,2]
[366398485,1750230665594,-1723.04,0.00016767,2]
[366398486,1750230665604,-1391.9,0.00016767,2]
[366398487,1750230665613,-7860.02,0.00016767,2]
[366398488,1750230665623,-953.34,0.00016767,2]
[366398489,1750230665633,-1141.59,0.00016767,2]
[366398490,1750230665643,-1585.97,0.00016767,2]
[366398491,1750230665654,-490.0,0.00016767,2]
[366398492,1750230665664,-809.73,0.00016767,2]
[366398493,1750230665674,-1291.35,0.00016767,2]
[366398494,1750230665684,-490.0,0.00016767,2]
[366398495,1750230665694,-490.0,0.00016767,2]
[366398496,1750230665704,-1204.62,0.00016767,2]
[366398497,1750230665715,-4500.06,0.00016767,2]
[366398498,1750230665725,-490.0,0.00016767,2]
[366398499,1750230665735,-3345.89,0.00016767,2]
[366398500,1750230665745,-2551.37,0.00016767,2]
[366398501,1750230665755,-1975.17,0.00016767,2]
[366398502,1750230665765,-1631.99,0.00016767,2]
[366398503,1750230665775,-490.0,0.00016767,2]
[366398504,1750230665785,-2926.027524,0.00016767,2]
[366398505,1750230665795,-490.0,0.00016767,2]
[366398506,1750230665806,-490.0,0.00016767,2]
[366398507,1750230665816,-1195.4,0.00016767,2]
[366398508,1750230665827,-521.03,0.00016767,2]
[366398509,1750230665837,-531.77,0.00016767,2]
[366398510,1750230665847,-594.13,0.00016767,2]
[366398511,1750230665857,-404.49515166,0.00016767,2]
[366398512,1750230665867,-1307.28,0.00016767,2]
[366398513,1750230665877,-1154.18,0.00016767,2]
[366398514,1750230665887,-490.0,0.00016767,2]
[366398515,1750230665897,-490.0,0.00016767,2]
[366398516,1750230665907,-348.64091862,0.00016767,2]
[366398517,1750230665917,-692.43,0.00016767,2]
[366398518,1750230665927,-803.54,0.00016767,2]
[366398519,1750230665937,-4482.7,0.00016767,2]
[366398520,1750230665947,-818.29,0.00016767,2]
[366398521,1750230665956,-1151.91,0.00016767,2]
[366398522,1750230665966,-490.0,0.00016767,2]
[366398523,1750230665976,-2889.51,0.00016767,2]
[366398524,1750230665986,-1317.23,0.00016767,2]
[366398525,1750230665996,-3062.38,0.00016767,2]
[366398526,1750230666006,-1984.01,0.00016767,2]
[366398527,1750230666015,-490.0,0.00016767,2]
[366398528,1750230666026,-1984.74,0.00016767,2]
[366398529,1750230666036,-490.0,0.00016767,2]
[366398530,1750230666046,-7478.91,0.00016767,2]
[366398531,1750230666055,-490.0,0.00016767,2]
[366398532,1750230666065,-490.0,0.00016767,2]
[366398533,1750230666075,-3362.37,0.00016767,2]
[366398534,1750230666084,-1923.45,0.00016767,2]
[366398535,1750230666094,-538.21,0.00016767,2]
[366398536,1750230666105,-490.0,0.00016767,2]
[366398537,1750230666116,-490.0,0.00016767,2]
[366398538,1750230666126,-1573.93,0.00016767,2]
[366398539,1750230666136,-490.0,0.00016767,2]
[366398540,1750230666146,-9366.78,0.00016767,2]
[366398541,1750230666155,-2167.41,0.00016767,2]
[366398542,1750230666165,-1871.26,0.00016767,2]
[366398543,1750230666175,-6434.11,0.00016767,2]
[366398544,1750230666184,-909.57,0.00016767,2]
[366398545,1750230666194,-490.0,0.00016767,2]
[366398546,1750230666204,-1776.09,0.00016767,2]
[366398547,1750230666214,-490.0,0.00016767,2]
[366398548,1750230666224,-609.28,0.00016767,2]
[366398549,1750230666233,-1298.54,0.00016767,2]
[366398550,1750230666243,-1551.59,0.00016767,2]
[366398551,1750230666253,-874.17,0.00016767,2]
[366398552,1750230666263,-525.73,0.00016767,2]
[366398553,1750230666272,-2501.31,0.00016767,2]
[366398554,1750230666282,-490.0,0.00016767,2]
[366398555,1750230666291,-490.0,0.00016767,2]
[366398556,1750230666300,-490.0,0.00016767,2]
[366398557,1750230666310,-3649.19,0.00016767,2]
[366398558,1750230666320,-490.0,0.00016767,2]
[366398559,1750230666330,-3302.65,0.00016767,2]
[366398560,1750230666339,-490.0,0.00016767,2]
[366398561,1750230666349,-629.72,0.00016767,2]
[366398562,1750230666359,-1860.01,0.00016767,2]
[366398563,1750230666369,-490.0,0.00016767,2]
[366398564,1750230666380,-5364.63,0.00016767,2]
[366398565,1750230666389,-490.0,0.00016767,2]
[366398566,1750230666399,-490.0,0.00016767,2]
[366398567,1750230666410,-786.97,0.00016767,2]
[366398568,1750230666419,-490.0,0.00016767,2]
[366398569,1750230666429,-709.03,0.00016767,2]
[366398570,1750230666439,-202.11632795,0.00016767,2]
[366398571,1750230666449,-615.53,0.00016767,2]
[366398572,1750230666458,-2388.51,0.00016767,2]
[366398573,1750230666468,-1015.18,0.00016767,2]
[366398574,1750230666477,-2485.5,0.00016767,2]
[366398575,1750230666487,-490.0,0.00016767,2]
[366398576,1750230666497,-879.72,0.00016767,2]
[366398577,1750230666506,-169.135622,0.00016767,2]
[366398578,1750230666516,-169.135622,0.00016767,2]
[366398579,1750230666526,-169.135622,0.00016767,2]
[366398580,1750230666535,-796.88,0.00016767,2]
[366398581,1750230666545,-2771.78,0.00016767,2]
[366398582,1750230666555,-169.135622,0.00016767,2]
[366398583,1750230666565,-169.135622,0.00016767,2]
[366398584,1750230666575,-169.135622,0.00016767,2]
[366398585,1750230666584,-1125.93,0.00016767,2]
[366398586,1750230666594,-1845.91,0.00016767,2]
[366398587,1750230666605,-8590.2,0.00016767,2]
[366398588,1750230666614,-151.0,0.00016767,2]
[366398589,1750230666625,-12341.89,0.00016767,2]
[366398590,1750230666634,-151.0,0.00016767,2]
[366398591,1750230666644,-2422.37,0.00016767,2]
[366398592,1750230666655,-1290.97,0.00016767,2]
[366398593,1750230666664,-490.0,0.00016767,2]
[366398594,1750230666674,-4651.83,0.00016767,2]
[366398595,1750230666684,-490.0,0.00016767,2]
[366398596,1750230666694,-490.0,0.00016767,2]
[366398597,1750230666704,-3335.94,0.00016767,2]
[366398598,1750230666713,-1432.99,0.00016767,2]
[366398599,1750230666722,-746.85,0.00016767,2]
[366398600,1750230666732,-1400.67,0.00016767,2]
[366398601,1750230666742,-8108.88,0.00016767,2]
[366398602,1750230666752,-1255.38,0.00016767,2]
[366398603,1750230666762,-490.0,0.00016767,2]
[366398604,1750230666774,-3173.6,0.00016767,2]
[366398605,1750230666784,-3395.91,0.00016767,2]
[366398606,1750230666866,-151.0,0.00016767,2]
[366398607,1750230666878,-151.0,0.00016767,2]
[366398608,1750230666888,-1236.02,0.00016767,2]
[366398609,1750230666898,-151.0,0.00016767,2]
[366398610,1750230666908,-490.0,0.00016767,2]
[366398611,1750230666918,-656.81,0.00016767,2]
[366398612,1750230666927,-2439.42,0.00016767,2]
[366398613,1750230666937,-490.0,0.00016767,2]
[366398614,1750230666946,-1790.7,0.00016767,2]
[366398615,1750230666956,-490.0,0.00016767,2]
[366398616,1750230666965,-1871.28,0.00016767,2]
[366398617,1750230666975,-490.0,0.00016767,2]
[366398618,1750230666984,-6313.64,0.00016767,2]
[366398619,1750230666994,-490.0,0.00016767,2]
[366398620,1750230667003,-4677.88,0.00016767,2]
[366398621,1750230667012,-2236.66,0.00016767,2]
[366398622,1750230667022,-1902.98,0.00016767,2]
[366398623,1750230667032,-1846.4,0.00016767,2]
[366398624,1750230667041,-1215.76,0.00016767,2]
[366398625,1750230667051,-490.0,0.00016767,2]
[366398626,1750230667060,-490.0,0.00016767,2]
[366398627,1750230667070,-490.0,0.00016767,2]
[366398628,1750230667079,-490.0,0.00016767,2]
[366398629,1750230667089,-638.19,0.00016767,2]
[366398630,1750230667098,-490.0,0.00016767,2]
[366398631,1750230667109,-516.52,0.00016767,2]
[366398632,1750230667119,-2303.24,0.00016767,2]
[366398633,1750230667130,-490.0,0.00016767,2]
[366398634,1750230667139,-1418.79,0.00016767,2]
[366398635,1750230667149,-1157.29,0.00016767,2]
[366398636,1750230667159,-3012.65,0.00016767,2]
[366398637,1750230667169,-214.5674032,0.00016767,2]
[366398638,1750230667178,-1012.45,0.00016767,2]
[366398639,1750230667188,-712.74,0.00016767,2]
[366398640,1750230667197,-749.22,0.00016767,2]
[366398641,1750230667206,-1341.46,0.00016767,2]
[366398642,1750230667215,-1103.85,0.00016767,2]
[366398643,1750230667225,-490.0,0.00016767,2]
[366398644,1750230667234,-467.10583863,0.00016767,2]
[366398645,1750230667244,-1879.83,0.00016767,2]
[366398646,1750230667253,-735.15,0.00016767,2]
[366398647,1750230667262,-490.0,0.00016767,2]
[366398648,1750230667271,-490.0,0.00016767,2]
[366398649,1750230667281,-569.32,0.00016767,2]
[366398650,1750230667290,-702.2,0.00016767,2]
[366398651,1750230667299,-3916.05,0.00016767,2]
[366398652,1750230667308,-709.77,0.00016767,2]
[366398653,1750230667317,-490.0,0.00016767,2]
[366398654,1750230667326,-3567.03,0.00016767,2]
[366398655,1750230667336,-1276.65,0.00016767,2]
[366398656,1750230667345,-490.0,0.00016767,2]
[366398657,1750230667355,-1233.66,0.00016767,2]
[366398658,1750230667364,-490.0,0.00016767,2]
[366398659,1750230667374,-1105.56,0.00016767,2]
[366398660,1750230667383,-7569.72,0.00016767,2]
[366398661,1750230667392,-490.0,0.00016767,2]
[366398662,1750230667402,-2098.21,0.00016767,2]
[366398663,1750230667411,-524.09,0.00016767,2]
[366398664,1750230667421,-740.47,0.00016767,2]
[366398665,1750230667431,-2309.41,0.00016767,2]
[366398666,1750230667440,-490.0,0.00016767,2]
[366398667,1750230667450,-1086.58,0.00016767,2]
[366398668,1750230667459,-490.0,0.00016767,2]
[366398669,1750230667469,-805.76,0.00016767,2]
[366398670,1750230667478,-490.0,0.00016767,2]
[366398671,1750230667487,-3763.77,0.00016767,2]
[366398672,1750230667498,-1384.45,0.00016767,2]
[366398673,1750230667507,-2631.94,0.00016767,2]
[366398674,1750230667516,-490.0,0.00016767,2]
[366398675,1750230667525,-554.44,0.00016767,2]
[366398676,1750230667534,-490.0,0.00016767,2]
[366398677,1750230667544,-19965.36,0.00016767,2]
[366398678,1750230667553,-657.75,0.00016767,2]
[366398679,1750230667563,-3463.32,0.00016767,2]
[366398680,1750230667572,-431.33537977,0.00016767,2]
[366398681,1750230667582,-843.56,0.00016767,2]
[366398682,1750230667591,-561.79,0.00016767,2]
[366398683,1750230667601,-490.0,0.00016767,2]
[366398684,1750230667611,-10406.07,0.00016767,2]
[366398685,1750230667620,-151.0,0.00016767,2]
[366398686,1750230667630,-151.0,0.00016767,2]
[366398687,1750230667639,-151.0,0.00016767,2]
[366398688,1750230667649,-660.59,0.00016767,2]
[366398689,1750230667659,-925.06,0.00016767,2]
[366398690,1750230667668,-1902.68,0.00016767,2]
[366398691,1750230667678,-490.0,0.00016767,2]
[366398692,1750230667687,-466.37814898,0.00016767,2]
[366398693,1750230667697,-7479.35,0.00016767,2]
[366398694,1750230667707,-2248.02,0.00016767,2]
[366398695,1750230667716,-490.0,0.00016767,2]
[366398696,1750230667725,-490.0,0.00016767,2]
[366398697,1750230667735,-581.61,0.00016767,2]
[366398698,1750230667744,-919.87,0.00016767,2]
[366398699,1750230667754,-1128.09,0.00016767,2]
[366398700,1750230667763,-3882.34,0.00016767,2]
[366398701,1750230667773,-1404.82,0.00016767,2]
[366398702,1750230667782,-1327.68,0.00016767,2]
[366398703,1750230667792,-602.22,0.00016767,2]
[366398704,1750230667801,-602.72,0.00016767,2]
[366398705,1750230667811,-9110.37,0.00016767,2]
[366398706,1750230667820,-2317.83,0.00016767,2]
[366398707,1750230667830,-6914.81,0.00016767,2]
[366398708,1750230667839,-529.47,0.00016767,2]
[366398709,1750230667850,-4567.13,0.00016767,2]
[366398710,1750230667859,-1303.38,0.00016767,2]
[366398711,1750230667870,-490.0,0.00016767,2]
[366398712,1750230667881,-500.83986138,0.00016767,2]
[366398713,1750230667891,-5203.1,0.00016767,2]
[366398714,1750230667900,-1218.56,0.00016767,2]
[366398715,1750230667909,-1013.5,0.00016767,2]
[366398716,1750230667919,-605.97,0.00016767,2]
[366398717,1750230667928,-490.0,0.00016767,2]
[366398718,1750230667938,-490.0,0.00016767,2]
[366398719,1750230667947,-2306.62,0.00016767,2]
[366398720,1750230667957,-1174.25,0.00016767,2]
[366398721,1750230667967,-513.17574363,0.00016767,2]
[366398722,1750230667977,-468.48644296,0.00016767,2]
[366398723,1750230667986,-1383.85,0.00016767,2]
[366398724,1750230667996,-490.0,0.00016767,2]
[366398725,1750230668006,-1159.64,0.00016767,2]
[366398726,1750230668016,-6632.99,0.00016767,2]
[366398727,1750230668026,-1295.9,0.00016767,2]
[366398728,1750230668035,-490.0,0.00016767,2]
[366398729,1750230668045,-1926.61,0.00016767,2]
[366398730,1750230668054,-1243.9,0.00016767,2]
[366398731,1750230668064,-1505.88,0.00016767,2]
[366398732,1750230668073,-591.33,0.00016767,2]
[366398733,1750230668083,-490.0,0.00016767,2]
[366398734,1750230668093,-490.0,0.00016767,2]
[366398735,1750230668103,-555.89,0.00016767,2]
[366398736,1750230668115,-1767.83,0.00016767,2]
[366398737,1750230668125,-3783.99,0.00016767,2]
[366398738,1750230668135,-860.34,0.00016767,2]
[366398739,1750230668145,-1141.79,0.00016767,2]
[366398740,1750230668156,-1568.07,0.00016767,2]
[366398741,1750230668166,-1763.69,0.00016767,2]
[366398742,1750230668175,-490.0,0.00016767,2]
[366398743,1750230668186,-644.26,0.00016767,2]
[366398744,1750230668196,-1328.11,0.00016767,2]
[366398745,1750230668205,-490.0,0.00016767,2]
[366398746,1750230668215,-490.0,0.00016767,2]
[366398747,1750230668224,-1697.96,0.00016767,2]
[366398748,1750230668234,-3401.94,0.00016767,2]
[366398749,1750230668244,-612.97,0.00016767,2]
[366398750,1750230668253,-23930.49,0.00016767,2]
[366398751,1750230668263,-2701.21,0.00016767,2]
[366398752,1750230668272,-767.96,0.00016767,2]
[366398753,1750230668283,-490.0,0.00016767,2]
[366398754,1750230668293,-490.0,0.00016767,2]
[366398755,1750230668302,-2182.46,0.00016767,2]
[366398756,1750230668312,-490.0,0.00016767,2]
[366398757,1750230668321,-1515.9,0.00016767,2]
[366398758,1750230668331,-1084.79,0.00016767,2]
[366398759,1750230668340,-1769.27,0.00016767,2]
[366398760,1750230668350,-863.78,0.00016767,2]
[366398761,1750230668359,-490.0,0.00016767,2]
[366398762,1750230668369,-218.0,0.00016768,2]
[366398763,1750230668380,-151.0,0.00016771,2]
[366398764,1750230668389,-1056.7595708,0.00016776,2]
[366398765,1750230668399,-179.73286433,0.00016776,2]
[366398766,1750230668408,-500.0,0.00016795,2]
[366398767,1750230668418,-500.0,0.00016796,2]
[366398768,1750230668427,-200.0,0.00016796,2]
[366398769,1750230668436,-1047.90200037,0.00016797,2]
[366398770,1750230668445,-151.0,0.00016825,2]
[366398771,1750230668455,-1608.0,0.0001683,2]
[366398772,1750230668465,-1534.8868716,0.00016831,2]
[366398773,1750230668474,-150.0,0.00016838,2]
[366398774,1750230668483,-168.0,0.00016847,2]
[366398775,1750230668493,-1056.7595708,0.00016849,2]
[366398776,1750230668502,-179.73286433,0.00016849,2]
[366398777,1750230668511,-1000.0,0.00016855,2]
[366398778,1750230668521,-7932.27206127,0.0001687,2]
[366398779,1750230668530,-155.92401153,0.0001687,2]